fUSD/lending_fUSD_20250215
["ID","MTS","AMOUNT","RATE_DAILY","PERIOD"]
[353174296,1739628641895,-500.0,0.00010963,2]
[353174297,1739628641904,-575.79,0.00010963,2]
[353174298,1739628641915,-500.0,0.00010963,2]
[353174299,1739628641924,-541.81,0.00010963,2]
[353174300,1739628641934,-500.0,0.00010963,2]
[353174301,1739628641944,-500.0,0.00010963,2]
[353174302,1739628641954,-500.0,0.00010963,2]
[353174303,1739628641964,-500.0,0.00010963,2]
[353174304,1739628641973,-500.0,0.00010963,2]
[353174305,1739628641983,-1110.29,0.00010963,2]
[353174306,1739628641992,-567.42,0.00010963,2]
[353174307,1739628642002,-502.3816813,0.00010963,2]
[353174308,1739628642012,-500.0,0.00010963,2]
[353174309,1739628642021,-545.27,0.00010963,2]
[353174310,1739628642031,-856.07,0.00010963,2]
[353174311,1739628642041,-500.0,0.00010963,2]
[353174312,1739628642051,-510.9926532,0.00010963,2]
[353174313,1739628642061,-731.39,0.00010963,2]
[353174314,1739628642071,-801.0,0.00010963,2]
[353174315,1739628642083,-500.0,0.00010963,2]
[353174316,1739628642093,-500.0,0.00010963,2]
[353174317,1739628642102,-500.0,0.00010963,2]
[353174318,1739628642112,-500.0,0.00010963,2]
[353174319,1739628642122,-500.0,0.00010963,2]
[353174320,1739628642131,-500.0,0.00010963,2]
[353174321,1739628642141,-151.0,0.00010963,2]
[353174322,1739628642150,-1000.0,0.00010963,2]
[353174323,1739628642159,-500.0,0.00010963,2]
[353174324,1739628642168,-500.0,0.00010963,2]
[353174325,1739628642178,-771.91,0.00010963,2]
[353174326,1739628642187,-500.0,0.00010963,2]
[353174327,1739628642197,-949.36,0.00010963,2]
[353174328,1739628642206,-500.0,0.00010963,2]
[353174329,1739628642216,-500.0,0.00010963,2]
[353174330,1739628642225,-500.0,0.00010963,2]
[353174331,1739628642235,-620.36,0.00010963,2]
[353174333,1739628642245,-555.27,0.00010963,2]
[353174334,1739628642254,-606.33,0.00010963,2]
[353174335,1739628642264,-500.0,0.00010963,2]
[353174336,1739628642274,-500.0,0.00010963,2]
[353174337,1739628642283,-795.54,0.00010963,2]
[353174338,1739628642293,-500.0,0.00010963,2]
[353174339,1739628642303,-500.0,0.00010963,2]
[353174340,1739628642314,-500.0,0.00010963,2]
[353174341,1739628642324,-778.06,0.00010963,2]
[353174342,1739628642334,-151.0,0.00010963,2]
[353174343,1739628642343,-500.0,0.00010963,2]
[353174344,1739628642353,-500.0,0.00010963,2]
[353174345,1739628642367,-500.0,0.00010963,2]
[353174346,1739628642377,-272.39876081,0.00010963,2]
[353174347,1739628642387,-819.84,0.00010963,2]
[353174348,1739628642396,-500.0,0.00010963,2]
[353174349,1739628642406,-500.0,0.00010963,2]
[353174350,1739628642416,-511.77,0.00010963,2]
[353174351,1739628642426,-562.39005038,0.00010963,2]
[353174352,1739628642435,-500.0,0.00010963,2]
[353174354,1739628642445,-754.85,0.00010963,2]
[353174356,1739628642455,-500.0,0.00010963,2]
[353174359,1739628642465,-500.0,0.00010963,2]
[353174363,1739628642475,-500.0,0.00010963,2]
[353174366,1739628642485,-500.0,0.00010963,2]
[353174368,1739628642495,-500.0,0.00010963,2]
[353174370,1739628642504,-500.0,0.00010963,2]
[353174371,1739628642514,-500.0,0.00010963,2]
[353174372,1739628642524,-500.0,0.00010963,2]
[353174373,1739628642535,-500.0,0.00010963,2]
[353174374,1739628642544,-500.0,0.00010963,2]
[353174375,1739628642554,-556.39,0.00010963,2]
[353174376,1739628642567,-714.76,0.00010963,2]
[353174377,1739628642578,-500.0,0.00010963,2]
[353174378,1739628642587,-500.0,0.00010963,2]
[353174379,1739628642597,-500.0,0.00010963,2]
[353174380,1739628642609,-500.0,0.00010963,2]
[353174381,1739628642619,-500.0,0.00010963,2]
[353174382,1739628642629,-638.96,0.00010963,2]
[353174383,1739628642639,-500.0,0.00010963,2]
[353174384,1739628642649,-500.0,0.00010963,2]
[353174385,1739628642659,-554.85,0.00010963,2]
[353174386,1739628642669,-500.0,0.00010963,2]
[353174387,1739628642678,-500.0,0.00010963,2]
[353174388,1739628642689,-689.75,0.00010963,2]
[353174389,1739628642698,-500.0,0.00010963,2]
[353174390,1739628642708,-500.0,0.00010963,2]
[353174391,1739628642718,-500.0,0.00010963,2]
[353174392,1739628642728,-787.14,0.00010963,2]
[353174393,1739628642738,-500.0,0.00010963,2]
[353174394,1739628642747,-176.48052831,0.00010963,2]
[353174395,1739628642758,-500.0,0.00010963,2]
[353174396,1739628642768,-367.59160577,0.00010963,2]
[353174397,1739628642778,-12367.33908727,0.00010964,3]
[353174398,1739628642788,-151.0,0.00010964,2]
[353174399,1739628642798,-151.0,0.00010964,2]
[353174400,1739628642808,-151.0,0.00010964,2]
[353174401,1739628642819,-151.0,0.00010964,2]
[353174402,1739628642829,-151.0,0.00010964,2]
[353174403,1739628642839,-151.0,0.00010964,2]
[353174404,1739628642849,-502785.46401354,0.00010964,2]
[353174405,1739628642893,-445.57434492,0.00010964,2]
[353174407,1739628643165,-119616.53424091,0.00010964,2]
[353174408,1739628643175,-25605.39642237,0.00010976,2]
[353174409,1739628643184,-953.79,0.00010999,2]
[353174410,1739628643194,-192.80886091,0.00010999,2]
[353174411,1739628643203,-1000.0,0.00010999,2]
[353174412,1739628643213,-1000.0,0.00010999,2]
[353174413,1739628643223,-1000.0,0.00010999,2]
[353174414,1739628643232,-191.06874452,0.00010999,2]
[353174415,1739628643241,-85480.82574323,0.00011,2]
[353174416,1739628643251,-200.0,0.00011,2]
[353174417,1739628643260,-200.0,0.00011,2]
[353174418,1739628643270,-200.0,0.00011,2]
[353174419,1739628643279,-200.0,0.00011,2]
[353174420,1739628643288,-200.0,0.00011,3]
[353174421,1739628643298,-200.0,0.00011,3]
[353174422,1739628643307,-200.0,0.00011,3]
[353174423,1739628643318,-194.0,0.00011,3]
[353174424,1739628643327,-194.0,0.00011,2]
[353174425,1739628643336,-194.0,0.00011,2]
[353174426,1739628643346,-195.01,0.00011,2]
[353174427,1739628643355,-151.0,0.00011,2]
[353174428,1739628643364,-151.0,0.00011,2]
[353174429,1739628643375,-151.0,0.00011,2]
[353174430,1739628643385,-613.44,0.00011044,2]
[353174431,1739628643395,-825.4,0.00011044,2]
[353174432,1739628643405,-500.0,0.00011044,2]
[353174433,1739628643415,-500.0,0.00011044,2]
[353174434,1739628643425,-516.8,0.00011044,2]
[353174435,1739628643435,-737.26,0.00011044,2]
[353174436,1739628643444,-1016.6,0.00011044,2]
[353174437,1739628643454,-911.41,0.00011044,2]
[353174439,1739628643463,-500.0,0.00011044,2]
[353174441,1739628643473,-519.06,0.00011044,2]
[353174442,1739628643482,-888.79,0.00011044,2]
[353174444,1739628643491,-500.0,0.00011044,2]
[353174446,1739628643501,-1104.72,0.00011044,2]
[353174448,1739628643511,-617.53,0.00011044,2]
[353174449,1739628643520,-1084.46,0.00011044,2]
[353174450,1739628643530,-588.68,0.00011044,2]
[353174451,1739628643540,-500.0,0.00011044,2]
[353174452,1739628643550,-500.0,0.00011044,2]
[353174453,1739628643562,-597.74,0.00011044,2]
[353174454,1739628643574,-756.78,0.00011044,2]
[353174455,1739628643584,-1155.16,0.00011044,2]
[353174456,1739628643593,-562.02,0.00011044,2]
[353174457,1739628643603,-500.0,0.00011044,2]
[353174458,1739628643613,-532.73,0.00011044,2]
[353174459,1739628643623,-500.0,0.00011044,2]
[353174460,1739628643632,-500.0,0.00011044,2]
[353174461,1739628643641,-500.0,0.00011044,2]
[353174462,1739628643652,-500.0,0.00011044,2]
[353174463,1739628643662,-1101.77,0.00011044,2]
[353174464,1739628643671,-884.31,0.00011044,2]
[353174465,1739628643681,-153.620143,0.00011046,2]
[353174466,1739628643691,-151.472388,0.00011046,2]
[353174467,1739628643701,-500.0,0.00011046,2]
[353174468,1739628643711,-500.0,0.00011046,2]
[353174469,1739628643721,-500.0,0.00011046,2]
[353174470,1739628643732,-500.0,0.00011046,2]
[353174471,1739628643742,-500.0,0.00011046,2]
[353174472,1739628643752,-500.0,0.00011046,2]
[353174473,1739628643762,-500.0,0.00011046,2]
[353174474,1739628643772,-577.36,0.00011046,2]
[353174475,1739628643782,-500.0,0.00011046,2]
[353174476,1739628643792,-500.0,0.00011046,2]
[353174477,1739628643802,-427.56,0.00011046,2]
[353174478,1739628643812,-500.0,0.00011046,2]
[353174479,1739628643821,-500.0,0.00011046,2]
[353174480,1739628643831,-500.0,0.00011046,2]
[353174481,1739628643841,-500.0,0.00011046,2]
[353174482,1739628643850,-500.0,0.00011046,2]
[353174483,1739628643859,-500.0,0.00011046,2]
[353174484,1739628643869,-500.0,0.00011046,2]
[353174485,1739628643929,-500.0,0.00011046,2]
[353174486,1739628643939,-500.0,0.00011046,2]
[353174487,1739628643948,-388.63,0.00011046,2]
[353174488,1739628643958,-500.0,0.00011046,2]
[353174489,1739628643967,-331.63,0.00011046,2]
[353174490,1739628643976,-241.98,0.00011046,2]
[353174491,1739628643985,-500.0,0.00011046,2]
[353174492,1739628643995,-455.26,0.00011046,2]
[353174493,1739628644005,-500.0,0.00011046,2]
[353174494,1739628644014,-272.48,0.00011046,2]
[353174495,1739628644024,-575.0518047,0.00011046,2]
[353174496,1739628644033,-186.69,0.00011046,2]
[353174497,1739628644042,-368.29454475,0.00011046,2]
[353174498,1739628644051,-500.0,0.00011046,2]
[353174499,1739628644062,-500.0,0.00011046,2]
[353174500,1739628644071,-574.08,0.00011046,2]
[353174501,1739628644080,-500.0,0.00011046,2]
[353174502,1739628644090,-500.0,0.00011046,2]
[353174503,1739628644099,-299.46,0.00011046,2]
[353174504,1739628644108,-500.0,0.00011046,2]
[353174505,1739628644118,-500.0,0.00011046,2]
[353174506,1739628644127,-500.0,0.00011046,2]
[353174507,1739628644136,-500.0,0.00011046,2]
[353174508,1739628644146,-500.0,0.00011046,2]
[353174509,1739628644155,-500.0,0.00011046,2]
[353174510,1739628644164,-500.0,0.00011046,2]
[353174511,1739628644173,-500.0,0.00011046,2]
[353174512,1739628644183,-421.36,0.00011046,2]
[353174513,1739628644192,-228.3979844,0.00011046,2]
[353174514,1739628644201,-325.86,0.00011046,2]
[353174515,1739628644210,-500.0,0.00011046,2]
[353174516,1739628644219,-500.0,0.00011046,2]
[353174517,1739628644228,-500.0,0.00011046,2]
[353174518,1739628644237,-541.96,0.00011046,2]
[353174519,1739628644246,-455.92333883,0.00011046,2]
[353174520,1739628644256,-1350.44,0.00011046,2]
[353174521,1739628644266,-400.29,0.00011046,2]
[353174522,1739628644275,-584.85,0.00011046,2]
[353174523,1739628644285,-500.0,0.00011046,2]
[353174524,1739628644295,-500.0,0.00011046,2]
[353174525,1739628644304,-500.0,0.00011046,2]
[353174526,1739628644315,-183.45,0.00011046,2]
[353174527,1739628644324,-500.0,0.00011046,2]
[353174528,1739628644333,-334.67,0.00011046,2]
[353174529,1739628644343,-340.8,0.00011046,2]
[353174530,1739628644352,-605.96,0.00011046,2]
[353174531,1739628644361,-500.0,0.00011046,2]
[353174532,1739628644371,-414.16,0.00011046,2]
[353174533,1739628644381,-424.93,0.00011046,2]
[353174534,1739628644390,-500.0,0.00011046,2]
[353174535,1739628644399,-354.86,0.00011046,2]
[353174536,1739628644409,-326.62,0.00011046,2]
[353174537,1739628644419,-500.0,0.00011046,2]
[353174538,1739628644428,-500.0,0.00011046,2]
[353174539,1739628644438,-326.46,0.00011046,2]
[353174540,1739628644447,-393.88,0.00011046,2]
[353174541,1739628644456,-277.8,0.00011046,2]
[353174542,1739628644466,-500.0,0.00011046,2]
[353174543,1739628644475,-500.0,0.00011046,2]
[353174544,1739628644484,-170.83,0.00011046,2]
[353174545,1739628644493,-500.0,0.00011046,2]
[353174546,1739628644502,-389.52,0.00011046,2]
[353174547,1739628644511,-500.0,0.00011046,2]
[353174548,1739628644520,-228.56,0.00011046,2]
[353174549,1739628644530,-500.0,0.00011046,2]
[353174550,1739628644539,-500.0,0.00011046,2]
[353174551,1739628644548,-432.97,0.00011046,2]
[353174552,1739628644557,-500.0,0.00011046,2]
[353174553,1739628644568,-500.0,0.00011046,2]
[353174554,1739628644578,-500.0,0.00011046,2]
[353174555,1739628644587,-430.34,0.00011046,2]
[353174556,1739628644596,-162.98,0.00011046,2]
[353174557,1739628644606,-500.0,0.00011046,2]
[353174558,1739628644615,-500.0,0.00011046,2]
[353174559,1739628644624,-500.0,0.00011046,2]
[353174560,1739628644633,-500.0,0.00011046,2]
[353174561,1739628644643,-500.0,0.00011046,2]
[353174562,1739628644653,-500.0,0.00011046,2]
[353174563,1739628644662,-702.64,0.00011046,2]
[353174564,1739628644671,-325.53,0.00011046,2]
[353174565,1739628644680,-538.09,0.00011046,2]
[353174566,1739628644690,-665.85,0.00011046,2]
[353174567,1739628644699,-500.0,0.00011046,2]
[353174568,1739628644708,-500.0,0.00011046,2]
[353174569,1739628644718,-500.0,0.00011046,2]
[353174570,1739628644728,-500.0,0.00011046,2]
[353174571,1739628644738,-500.0,0.00011046,2]
[353174572,1739628644748,-702.23,0.00011046,2]
[353174573,1739628644758,-381.24,0.00011046,2]
[353174574,1739628644768,-500.0,0.00011046,2]
[353174575,1739628644777,-500.0,0.00011046,2]
[353174576,1739628644787,-1113.93,0.00011046,2]
[353174577,1739628644796,-559.35,0.00011046,2]
[353174578,1739628644805,-786.94,0.00011046,2]
[353174579,1739628644816,-3236.96,0.00011046,2]
[353174580,1739628644825,-230.57,0.00011046,2]
[353174581,1739628644835,-181.83,0.00011046,2]
[353174582,1739628644845,-500.0,0.00011046,2]
[353174583,1739628644854,-500.0,0.00011046,2]
[353174584,1739628644864,-1124.79,0.00011046,2]
[353174585,1739628644873,-739.66,0.00011046,2]
[353174586,1739628644882,-174.27,0.00011046,2]
[353174587,1739628644892,-500.0,0.00011046,2]
[353174588,1739628644901,-448.61,0.00011046,2]
[353174589,1739628644910,-356.64,0.00011046,2]
[353174590,1739628644919,-500.0,0.00011046,2]
[353174591,1739628644928,-216.26,0.00011046,2]
[353174592,1739628644937,-151.0,0.00011046,2]
[353174593,1739628644946,-500.0,0.00011046,2]
[353174594,1739628644956,-807.71,0.00011046,2]
[353174595,1739628644965,-731.83,0.00011046,2]
[353174596,1739628644974,-723.11,0.00011046,2]
[353174597,1739628644984,-500.0,0.00011046,2]
[353174598,1739628644993,-377.14,0.00011046,2]
[353174599,1739628645003,-915.68,0.00011046,2]
[353174600,1739628645012,-500.0,0.00011046,2]
[353174601,1739628645022,-649.57,0.00011046,2]
[353174602,1739628645031,-522.41,0.00011046,2]
[353174603,1739628645040,-234.79,0.00011046,2]
[353174604,1739628645050,-416.29,0.00011046,2]
[353174605,1739628645059,-1397.79,0.00011046,2]
[353174606,1739628645069,-196.88,0.00011046,2]
[353174607,1739628645078,-500.0,0.00011046,2]
[353174608,1739628645087,-500.0,0.00011046,2]
[353174609,1739628645096,-231.97,0.00011046,2]
[353174610,1739628645105,-500.0,0.00011046,2]
[353174611,1739628645114,-500.0,0.00011046,2]
[353174612,1739628645123,-752.36,0.00011046,2]
[353174613,1739628645132,-721.04,0.00011046,2]
[353174614,1739628645141,-500.0,0.00011046,2]
[353174615,1739628645150,-1171.81,0.00011046,2]
[353174616,1739628645159,-794.85,0.00011046,2]
[353174617,1739628645168,-500.0,0.00011046,2]
[353174618,1739628645177,-500.0,0.00011046,2]
[353174619,1739628645186,-842.67,0.00011046,2]
[353174620,1739628645195,-2696.54,0.00011046,2]
[353174621,1739628645205,-717.7,0.00011046,2]
[353174622,1739628645218,-500.0,0.00011046,2]
[353174623,1739628645227,-303.23,0.00011046,2]
[353174624,1739628645236,-457.69,0.00011046,2]
[353174625,1739628645245,-192.37,0.00011046,2]
[353174626,1739628645255,-637.45,0.00011046,2]
[353174627,1739628645264,-931.06,0.00011046,2]
[353174628,1739628645273,-550.60859936,0.00011046,2]
[353174629,1739628645282,-500.0,0.00011046,2]
[353174630,1739628645291,-500.0,0.00011046,2]
[353174631,1739628645301,-1914.64,0.00011046,2]
[353174632,1739628645309,-500.0,0.00011046,2]
[353174633,1739628645319,-500.0,0.00011046,2]
[353174634,1739628645328,-500.0,0.00011046,2]
[353174636,1739628645337,-575.79,0.00011046,2]
[353174638,1739628645346,-541.81,0.00011046,2]
[353174639,1739628645355,-500.0,0.00011046,2]
[353174641,1739628645364,-332.3,0.00011046,2]
[353174643,1739628645373,-435.43,0.00011046,2]
[353174644,1739628645383,-1110.29,0.00011046,2]
[353174645,1739628645392,-539.68,0.00011046,2]
[353174646,1739628645401,-856.07,0.00011046,2]
[353174647,1739628645411,-500.0,0.00011046,2]
[353174648,1739628645420,-731.39,0.00011046,2]
[353174649,1739628645429,-801.0,0.00011046,2]
[353174650,1739628645438,-500.0,0.00011046,2]
[353174651,1739628645447,-408.72,0.00011046,2]
[353174652,1739628645456,-500.0,0.00011046,2]
[353174653,1739628645465,-635.12,0.00011046,2]
[353174654,1739628645474,-1032.73,0.00011046,2]
[353174655,1739628645483,-500.0,0.00011046,2]
[353174656,1739628645493,-521.97,0.00011046,2]
[353174657,1739628645502,-771.91,0.00011046,2]
[353174658,1739628645511,-509.57,0.00011046,2]
[353174659,1739628645521,-949.36,0.00011046,2]
[353174660,1739628645530,-500.0,0.00011046,2]
[353174661,1739628645540,-500.0,0.00011046,2]
[353174662,1739628645549,-620.36,0.00011046,2]
[353174663,1739628645559,-481.13,0.00011046,2]
[353174664,1739628645571,-237.1,0.00011046,2]
[353174665,1739628645580,-795.54,0.00011046,2]
[353174666,1739628645589,-778.06,0.00011046,2]
[353174667,1739628645599,-500.0,0.00011046,2]
[353174668,1739628645611,-568.9,0.00011046,2]
[353174669,1739628645621,-819.84,0.00011046,2]
[353174670,1739628645630,-500.0,0.00011046,2]
[353174671,1739628645640,-511.77,0.00011046,2]
[353174672,1739628645649,-500.0,0.00011046,2]
[353174673,1739628645659,-754.85,0.00011046,2]
[353174674,1739628645669,-500.0,0.00011046,2]
[353174675,1739628645679,-500.0,0.00011046,2]
[353174676,1739628645689,-500.0,0.00011046,2]
[353174677,1739628645699,-623.03,0.00011046,2]
[353174678,1739628645708,-500.0,0.00011046,2]
[353174679,1739628645718,-253.88,0.00011046,2]
[353174680,1739628645728,-251.31,0.00011046,2]
[353174681,1739628645739,-714.76,0.00011046,2]
[353174682,1739628645749,-324.32,0.00011046,2]
[353174683,1739628645759,-601.68,0.00011046,2]
[353174684,1739628645768,-500.0,0.00011046,2]
[353174685,1739628645778,-500.0,0.00011046,2]
[353174686,1739628645788,-246.05,0.00011046,2]
[353174687,1739628645797,-500.0,0.00011046,2]
[353174688,1739628645807,-481.5,0.00011046,2]
[353174690,1739628645817,-689.75,0.00011046,2]
[353174692,1739628645827,-571.58,0.00011046,2]
[353174694,1739628645837,-500.0,0.00011046,2]
[353174696,1739628645846,-429.26,0.00011046,2]
[353174697,1739628645856,-787.14,0.00011046,2]
[353174698,1739628645865,-358.04894978,0.00011051,2]
[353174699,1739628645875,-382.24323484,0.00011064,2]
[353174700,1739628645885,-154.571206,0.00011064,2]
[353174701,1739628645895,-154.53782294,0.00011064,2]
[353174702,1739628645905,-381.37338086,0.00011064,2]
[353174703,1739628645914,-1226.40514572,0.00011064,2]
[353174704,1739628645924,-2903.14529375,0.00011099,2]
[353174705,1739628645934,-2903.1452937,0.00011099,2]
[353174706,1739628645944,-2903.1452937,0.00011099,2]
[353174708,1739628645954,-2903.1452937,0.00011099,2]
[353174709,1739628645963,-2903.1452937,0.00011099,2]
[353174710,1739628645973,-166.26495163,0.00011099,2]
[353174711,1739628645982,-166.26495158,0.00011099,2]
[353174712,1739628645992,-166.26495158,0.00011099,2]
[353174713,1739628646001,-166.26495158,0.00011099,2]
[353174714,1739628646011,-166.26495158,0.00011099,2]
[353174715,1739628646021,-166.26495158,0.00011099,2]
[353174716,1739628646031,-1339.01178175,0.00011106,2]
[353174717,1739628646040,-825.4,0.00011127,2]
[353174718,1739628646049,-500.0,0.00011127,2]
[353174719,1739628646059,-500.0,0.00011127,2]
[353174720,1739628646071,-737.26,0.00011127,2]
[353174721,1739628646081,-516.8,0.00011127,2]
[353174722,1739628646090,-1016.6,0.00011127,2]
[353174723,1739628646100,-911.41,0.00011127,2]
[353174724,1739628646109,-519.06,0.00011127,2]
[353174725,1739628646119,-888.79,0.00011127,2]
[353174726,1739628646129,-500.0,0.00011127,2]
[353174727,1739628646138,-1104.72,0.00011127,2]
[353174728,1739628646148,-617.53,0.00011127,2]
[353174729,1739628646157,-1084.46,0.00011127,2]
[353174730,1739628646167,-588.68,0.00011127,2]
[353174731,1739628646177,-500.0,0.00011127,2]
[353174732,1739628646187,-500.0,0.00011127,2]
[353174733,1739628646196,-756.78,0.00011127,2]
[353174734,1739628646206,-1155.16,0.00011127,2]
[353174735,1739628646216,-562.02,0.00011127,2]
[353174736,1739628646226,-500.0,0.00011127,2]
[353174737,1739628646235,-532.73,0.00011127,2]
[353174738,1739628646245,-252.79,0.00011127,2]
[353174739,1739628646255,-500.0,0.00011127,2]
[353174740,1739628646265,-500.58425929,0.00011127,2]
[353174741,1739628646275,-1101.77,0.00011127,2]
[353174742,1739628646285,-884.31,0.00011127,2]
[353174743,1739628646294,-153.620143,0.00011128,2]
[353174744,1739628646304,-151.472388,0.00011128,2]
[353174745,1739628646314,-500.0,0.00011128,2]
[353174746,1739628646325,-311.32,0.00011128,2]
[353174747,1739628646335,-500.0,0.00011128,2]
[353174748,1739628646345,-200.34,0.00011128,2]
[353174749,1739628646356,-372.08,0.00011128,2]
[353174750,1739628646367,-646.92,0.00011128,2]
[353174751,1739628646377,-500.0,0.00011128,2]
[353174752,1739628646387,-500.0,0.00011128,2]
[353174753,1739628646396,-188.36,0.00011128,2]
[353174754,1739628646406,-500.0,0.00011128,2]
[353174755,1739628646416,-283.69,0.00011128,2]
[353174756,1739628646426,-500.0,0.00011128,2]
[353174757,1739628646436,-500.0,0.00011128,2]
[353174758,1739628646446,-522.0,0.00011128,2]
[353174759,1739628646455,-500.0,0.00011128,2]
[353174760,1739628646465,-500.0,0.00011128,2]
[353174761,1739628646475,-166.88,0.00011128,2]
[353174762,1739628646484,-500.0,0.00011128,2]
[353174763,1739628646494,-500.0,0.00011128,2]
[353174764,1739628646504,-500.0,0.00011128,2]
[353174765,1739628646514,-1350.44,0.00011128,2]
[353174766,1739628646523,-500.0,0.00011128,2]
[353174767,1739628646533,-500.0,0.00011128,2]
[353174768,1739628646543,-500.0,0.00011128,2]
[353174769,1739628646553,-500.0,0.00011128,2]
[353174770,1739628646564,-500.0,0.00011128,2]
[353174771,1739628646578,-345.38,0.00011128,2]
[353174772,1739628646587,-500.0,0.00011128,2]
[353174773,1739628646597,-500.0,0.00011128,2]
[353174774,1739628646606,-500.0,0.00011128,2]
[353174775,1739628646617,-500.0,0.00011128,2]
[353174776,1739628646627,-500.0,0.00011128,2]
[353174777,1739628646637,-500.0,0.00011128,2]
[353174778,1739628646648,-539.84,0.00011128,2]
[353174779,1739628646657,-500.0,0.00011128,2]
[353174780,1739628646667,-305.7,0.00011128,2]
[353174781,1739628646677,-347.48,0.00011128,2]
[353174782,1739628646686,-500.0,0.00011128,2]
[353174783,1739628646697,-500.0,0.00011128,2]
[353174784,1739628646707,-500.0,0.00011128,2]
[353174785,1739628646716,-500.0,0.00011128,2]
[353174786,1739628646726,-500.0,0.00011128,2]
[353174787,1739628646736,-500.0,0.00011128,2]
[353174788,1739628646746,-702.64,0.00011128,2]
[353174789,1739628646756,-538.09,0.00011128,2]
[353174790,1739628646766,-665.85,0.00011128,2]
[353174791,1739628646776,-500.0,0.00011128,2]
[353174792,1739628646786,-500.0,0.00011128,2]
[353174793,1739628646795,-500.0,0.00011128,2]
[353174794,1739628646805,-500.0,0.00011128,2]
[353174795,1739628646817,-287.0,0.00011128,2]
[353174796,1739628646827,-702.23,0.00011128,2]
[353174797,1739628646838,-500.0,0.00011128,2]
[353174798,1739628646848,-305.5,0.00011128,2]
[353174799,1739628646857,-1113.93,0.00011128,2]
[353174800,1739628646868,-559.35,0.00011128,2]
[353174801,1739628646878,-786.94,0.00011128,2]
[353174802,1739628646888,-3236.96,0.00011128,2]
[353174803,1739628646898,-500.0,0.00011128,2]
[353174804,1739628646907,-636.74,0.00011128,2]
[353174805,1739628646918,-1124.79,0.00011128,2]
[353174806,1739628646928,-739.66,0.00011128,2]
[353174807,1739628646938,-500.0,0.00011128,2]
[353174808,1739628646948,-285.97,0.00011128,2]
[353174809,1739628646957,-807.71,0.00011128,2]
[353174810,1739628646968,-731.83,0.00011128,2]
[353174811,1739628646978,-723.11,0.00011128,2]
[353174812,1739628646987,-500.0,0.00011128,2]
[353174813,1739628646997,-915.68,0.00011128,2]
[353174814,1739628647007,-500.0,0.00011128,2]
[353174815,1739628647019,-649.57,0.00011128,2]
[353174816,1739628647030,-1397.79,0.00011128,2]
[353174817,1739628647040,-500.0,0.00011128,2]
[353174818,1739628647050,-500.0,0.00011128,2]
[353174819,1739628647060,-317.05,0.00011128,2]
[353174820,1739628647072,-752.36,0.00011128,2]
[353174821,1739628647082,-721.04,0.00011128,2]
[353174822,1739628647092,-456.56,0.00011128,2]